fUSD/lending_fUSD_20241116
["ID","MTS","AMOUNT","RATE_DAILY","PERIOD"]
[342328311,1731729034832,-500.48962787,9.899e-05,2]
[342328312,1731729034841,-500.0,9.899e-05,2]
[342328313,1731729034850,-500.0,9.899e-05,2]
[342328314,1731729034860,-510.78308023,9.899e-05,2]
[342328315,1731729034869,-500.42000228,9.899e-05,2]
[342328316,1731729034878,-500.27595936,9.899e-05,2]
[342328317,1731729034887,-500.0,9.899e-05,2]
[342328318,1731729034896,-506.49504032,9.899e-05,2]
[342328319,1731729034905,-500.0,9.899e-05,2]
[342328320,1731729034914,-500.0,9.899e-05,2]
[342328321,1731729034923,-500.03960218,9.899e-05,2]
[342328322,1731729034933,-971.28,9.899e-05,2]
[342328323,1731729034942,-500.0,9.899e-05,2]
[342328324,1731729034951,-500.0,9.899e-05,2]
[342328325,1731729034960,-408.27288012,9.899e-05,2]
[342328326,1731729034972,-500.0,9.899e-05,2]
[342328327,1731729034981,-500.0,9.899e-05,2]
[342328328,1731729034990,-500.0,9.899e-05,2]
[342328329,1731729034999,-500.0,9.899e-05,2]
[342328330,1731729035008,-500.0,9.899e-05,2]
[342328331,1731729035018,-500.50888462,9.899e-05,2]
[342328332,1731729035027,-1120.43,9.899e-05,2]
[342328333,1731729035040,-500.0,9.899e-05,2]
[342328334,1731729035051,-500.0,9.899e-05,2]
[342328335,1731729035061,-500.27100862,9.899e-05,2]
[342328336,1731729035071,-500.0,9.899e-05,2]
[342328337,1731729035083,-498.5833071,9.899e-05,2]
[342328338,1731729035093,-501.15144012,9.899e-05,2]
[342328339,1731729035103,-500.0,9.899e-05,2]
[342328340,1731729035114,-500.0,9.899e-05,2]
[342328341,1731729035123,-500.0,9.899e-05,2]
[342328342,1731729035132,-500.0,9.899e-05,2]
[342328343,1731729035141,-500.0,9.899e-05,2]
[342328344,1731729035150,-500.57448715,9.899e-05,2]
[342328345,1731729035159,-500.0,9.899e-05,2]
[342328346,1731729035168,-500.0,9.899e-05,2]
[342328347,1731729035177,-510.77292226,9.899e-05,2]
[342328348,1731729035187,-500.0,9.899e-05,2]
[342328349,1731729035196,-500.0,9.899e-05,2]
[342328350,1731729035206,-500.27649197,9.899e-05,2]
[342328351,1731729035215,-500.0,9.899e-05,2]
[342328352,1731729035226,-526.7,9.899e-05,2]
[342328353,1731729035235,-500.0,9.899e-05,2]
[342328354,1731729035244,-500.0,9.899e-05,2]
[342328355,1731729035254,-500.0,9.899e-05,2]
[342328356,1731729035263,-500.0,9.899e-05,2]
[342328357,1731729035272,-500.0,9.899e-05,2]
[342328358,1731729035281,-500.0,9.899e-05,2]
[342328359,1731729035291,-500.03074125,9.899e-05,2]
[342328360,1731729035300,-500.0,9.899e-05,2]
[342328361,1731729035309,-500.0,9.899e-05,2]
[342328362,1731729035318,-500.0,9.899e-05,2]
[342328363,1731729035327,-405.91852682,9.899e-05,2]
[342328364,1731729035336,-500.0,9.899e-05,2]
[342328365,1731729035345,-533.92746283,9.899e-05,2]
[342328366,1731729035355,-500.26992017,9.899e-05,2]
[342328367,1731729035364,-500.0,9.899e-05,2]
[342328368,1731729035373,-500.0,9.899e-05,2]
[342328369,1731729035383,-500.25886324,9.899e-05,2]
[342328370,1731729035392,-500.0,9.899e-05,2]
[342328371,1731729035401,-500.0,9.899e-05,2]
[342328372,1731729035411,-500.0,9.899e-05,2]
[342328373,1731729035420,-500.30094848,9.899e-05,2]
[342328374,1731729035429,-500.0,9.899e-05,2]
[342328375,1731729035439,-500.59997324,9.899e-05,2]
[342328376,1731729035448,-500.0,9.899e-05,2]
[342328377,1731729035457,-500.45272426,9.899e-05,2]
[342328378,1731729035468,-500.0,9.899e-05,2]
[342328379,1731729035478,-500.0,9.899e-05,2]
[342328380,1731729035487,-2019.18,9.899e-05,2]
[342328381,1731729035497,-556.63016706,9.899e-05,2]
[342328382,1731729035506,-500.0,9.899e-05,2]
[342328383,1731729035515,-500.27430727,9.899e-05,2]
[342328384,1731729035524,-458.3746913,9.899e-05,2]
[342328385,1731729035533,-500.42624855,9.899e-05,2]
[342328386,1731729035542,-500.0,9.899e-05,2]
[342328387,1731729035551,-161674.80359746,9.9e-05,2]
[342328388,1731729035906,-613.77,9.9e-05,2]
[342328389,1731729035951,-501.13595096,9.899e-05,2]
[342328390,1731729035960,-126.25271539,9.9e-05,2]
[342328391,1731729035973,-1396.50221221,9.9e-05,2]
[342328392,1731729035983,-10332.049264,9.9e-05,2]
[342328393,1731729035994,-604.32337629,9.9e-05,2]
[342328394,1731729036005,-11004.53444641,9.9e-05,2]
[342328395,1731729036016,-9131.18618999,9.9e-05,2]
[342328396,1731729038264,-341.38082856,9.899e-05,2]
[342328397,1731729038275,-158.65196924,9.899e-05,2]
[342328398,1731729038283,-500.0,9.899e-05,2]
[342328399,1731729038291,-141.34803076,9.899e-05,2]
[342328400,1731729038302,-273.606,9.899e-05,2]
[342328401,1731729038527,-85.04596924,9.899e-05,2]
[342328402,1731729038536,-1179.38961069,9.9e-05,2]
[342328403,1731729038546,-1950.98813362,9.9e-05,2]
[342328404,1731729038557,-2927.12184367,9.9e-05,2]
[342328405,1731729038568,-651.52929213,9.9e-05,2]
[342328420,1731729041916,-298.194,9.899e-05,2]
[342328421,1731729042005,-202.38907781,9.899e-05,2]
[342328422,1731729042015,-500.0,9.899e-05,2]
[342328423,1731729042024,-11367.90176968,9.9e-05,2]
[342328424,1731729042037,-267.7249681,9.9e-05,2]
[342328425,1731729042049,-2290.5409824,9.9e-05,2]
[342328426,1731729042060,-1096.98,9.9e-05,2]
[342328435,1731729044397,-500.29620924,9.899e-05,2]
[342328436,1731729044407,-500.0,9.899e-05,2]
[342328437,1731729044417,-128.49581616,9.9e-05,2]
[342328438,1731729044428,-28255.9057818,9.9e-05,2]
[342328439,1731729044438,-6398.8,9.9e-05,2]
[342328440,1731729044447,-19010.0663,9.9e-05,2]
[342328441,1731729044456,-429.744,9.91e-05,2]
[342328442,1731729044466,-652.41,9.997e-05,2]
[342328443,1731729044479,-500.0,9.997e-05,2]
[342328444,1731729044493,-552.68302881,9.997e-05,2]
[342328445,1731729044504,-500.0,9.997e-05,2]
[342328446,1731729044514,-500.0,9.997e-05,2]
[342328447,1731729044524,-500.0,9.997e-05,2]
[342328448,1731729044534,-500.0,9.997e-05,2]
[342328449,1731729044544,-500.0,9.997e-05,2]
[342328450,1731729044554,-500.0,9.997e-05,2]
[342328451,1731729044564,-500.0,9.997e-05,2]
[342328452,1731729044573,-500.0,9.997e-05,2]
[342328453,1731729044582,-500.0,9.997e-05,2]
[342328454,1731729044592,-500.0,9.997e-05,2]
[342328455,1731729044600,-500.0,9.997e-05,2]
[342328456,1731729044610,-500.0,9.997e-05,2]
[342328457,1731729044619,-500.0,9.997e-05,2]
[342328458,1731729044629,-500.0,9.997e-05,2]
[342328459,1731729044638,-250.0,9.997e-05,2]
[342328460,1731729044647,-500.0,9.997e-05,2]
[342328461,1731729044657,-500.0,9.997e-05,2]
[342328462,1731729044666,-500.0,9.997e-05,2]
[342328463,1731729044677,-500.0,9.997e-05,2]
[342328464,1731729044686,-500.0,9.997e-05,2]
[342328465,1731729044696,-500.0,9.997e-05,2]
[342328466,1731729044705,-500.0,9.997e-05,2]
[342328467,1731729044714,-500.0,9.997e-05,2]
[342328468,1731729044724,-500.0,9.997e-05,2]
[342328469,1731729044737,-500.0,9.997e-05,2]
[342328470,1731729044747,-500.0,9.997e-05,2]
[342328471,1731729044756,-500.0,9.997e-05,2]
[342328472,1731729044766,-500.0,9.997e-05,2]
[342328473,1731729044775,-500.0,9.997e-05,2]
[342328474,1731729044784,-500.0,9.997e-05,2]
[342328475,1731729044794,-500.0,9.997e-05,2]
[342328476,1731729044803,-500.0,9.997e-05,2]
[342328477,1731729044813,-500.0,9.997e-05,2]
[342328478,1731729044822,-500.0,9.997e-05,2]
[342328479,1731729044831,-500.0,9.997e-05,2]
[342328480,1731729044840,-500.0,9.997e-05,2]
[342328481,1731729044850,-500.0,9.997e-05,2]
[342328482,1731729044859,-500.0,9.997e-05,2]
[342328483,1731729044869,-500.0,9.997e-05,2]
[342328484,1731729044879,-500.0,9.997e-05,2]
[342328485,1731729044888,-500.0,9.997e-05,2]
[342328486,1731729044897,-500.0,9.997e-05,2]
[342328487,1731729044907,-500.0,9.997e-05,2]
[342328488,1731729044917,-500.0,9.997e-05,2]
[342328489,1731729044926,-500.0,9.997e-05,2]
[342328490,1731729044935,-500.0,9.997e-05,2]
[342328491,1731729044945,-500.0,9.997e-05,2]
[342328492,1731729044954,-500.0,9.997e-05,2]
[342328493,1731729044963,-500.0,9.997e-05,2]
[342328494,1731729044972,-500.0,9.997e-05,2]
[342328495,1731729044984,-500.0,9.997e-05,2]
[342328496,1731729044994,-500.0,9.997e-05,2]
[342328497,1731729045003,-500.0,9.997e-05,2]
[342328498,1731729045014,-500.0,9.997e-05,2]
[342328499,1731729045023,-500.0,9.997e-05,2]
[342328501,1731729045033,-500.0,9.997e-05,2]
[342328503,1731729045047,-585.98,9.997e-05,2]
[342328505,1731729045056,-500.0,9.997e-05,2]
[342328506,1731729045065,-500.0,9.997e-05,2]
[342328508,1731729045074,-500.0,9.997e-05,2]
[342328509,1731729045085,-500.0,9.997e-05,2]
[342328510,1731729045094,-512.19,9.997e-05,2]
[342328511,1731729045103,-500.0,9.997e-05,2]
[342328512,1731729045113,-3023.62,9.997e-05,2]
[342328513,1731729045123,-500.0,9.997e-05,2]
[342328514,1731729045133,-500.0,9.997e-05,2]
[342328515,1731729045142,-500.0,9.997e-05,2]
[342328516,1731729045152,-500.0,9.997e-05,2]
[342328517,1731729045161,-500.0,9.997e-05,2]
[342328518,1731729045171,-500.0,9.997e-05,2]
[342328519,1731729045180,-500.0,9.997e-05,2]
[342328520,1731729045189,-500.0,9.997e-05,2]
[342328521,1731729045199,-500.0,9.997e-05,2]
[342328522,1731729045208,-500.0,9.997e-05,2]
[342328523,1731729045218,-500.0,9.997e-05,2]
[342328524,1731729045229,-500.0,9.997e-05,2]
[342328525,1731729045238,-500.0,9.997e-05,2]
[342328526,1731729045247,-500.0,9.997e-05,2]
[342328527,1731729045257,-1260.11,9.997e-05,2]
[342328528,1731729045266,-500.0,9.997e-05,2]
[342328529,1731729045276,-500.0,9.997e-05,2]
[342328530,1731729045286,-500.0,9.997e-05,2]
[342328531,1731729045295,-500.0,9.997e-05,2]
[342328532,1731729045304,-662.45,9.997e-05,2]
[342328533,1731729045313,-500.0,9.997e-05,2]
[342328534,1731729045323,-500.0,9.997e-05,2]
[342328535,1731729045332,-500.0,9.997e-05,2]
[342328536,1731729045342,-500.0,9.997e-05,2]
[342328537,1731729045352,-971.28,9.997e-05,2]
[342328538,1731729045361,-500.0,9.997e-05,2]
[342328539,1731729045371,-500.0,9.997e-05,2]
[342328540,1731729045380,-500.0,9.997e-05,2]
[342328541,1731729045390,-500.0,9.997e-05,2]
[342328542,1731729045399,-500.0,9.997e-05,2]
[342328543,1731729045408,-500.0,9.997e-05,2]
[342328544,1731729045418,-1120.43,9.997e-05,2]
[342328545,1731729045427,-500.0,9.997e-05,2]
[342328546,1731729045437,-500.0,9.997e-05,2]
[342328547,1731729045446,-636.16061255,9.997e-05,2]
[342328548,1731729045455,-500.0,9.997e-05,2]
[342328549,1731729045464,-500.0,9.997e-05,2]
[342328550,1731729045474,-500.0,9.997e-05,2]
[342328551,1731729045485,-500.0,9.997e-05,2]
[342328552,1731729045494,-500.0,9.997e-05,2]
[342328553,1731729045503,-500.0,9.997e-05,2]
[342328554,1731729045513,-500.0,9.997e-05,2]
[342328555,1731729045523,-500.0,9.997e-05,2]
[342328556,1731729045532,-526.7,9.997e-05,2]
[342328557,1731729045542,-500.0,9.997e-05,2]
[342328558,1731729045551,-500.0,9.997e-05,2]
[342328559,1731729045561,-500.0,9.997e-05,2]
[342328560,1731729045570,-500.0,9.997e-05,2]
[342328561,1731729045579,-500.0,9.997e-05,2]
[342328562,1731729045588,-340.553597,9.997e-05,2]
[342328563,1731729045602,-159.446403,9.997e-05,2]
[342328564,1731729045611,-500.0,9.997e-05,2]
[342328565,1731729045621,-500.0,9.997e-05,2]
[342328566,1731729045631,-500.0,9.997e-05,2]
[342328567,1731729045857,-107.31913331,9.997e-05,2]
[342328568,1731729045871,-395.25469196,9.997e-05,2]
[342328569,1731729045880,-500.0,9.997e-05,2]
[342328570,1731729045890,-2019.18,9.997e-05,2]
[342328571,1731729045899,-500.0,9.997e-05,2]
[342328572,1731729045908,-500.0,9.997e-05,2]
[342328573,1731729045922,-500.0,9.997e-05,2]
[342328574,1731729045931,-3958.73241966,9.998e-05,2]
[342328575,1731729045941,-661.5074491,9.998e-05,2]
[342328577,1731729046300,-500.0,9.997e-05,2]
[342328578,1731729046309,-4850.08324455,9.998e-05,2]
[342328585,1731729170921,2039.29,8.219e-05,2]
[342328586,1731729225635,200.0,8.501e-05,2]
[342328588,1731729582074,2402.79570286,8.501e-05,2]
[342328589,1731729954124,-1000.0,8.985e-05,2]
[342328590,1731729954147,-250.0,9.001e-05,2]
[342328591,1731729954168,-969.61,9.038e-05,2]
[342328592,1731729954188,-458.41,9.052e-05,2]
[342328593,1731729954210,-293.81,9.091e-05,2]
[342328594,1731729954230,-1500.0,9.212e-05,2]
[342328595,1731729954252,-167.8,9.522e-05,2]
[342328596,1731729954272,-250.0,9.54e-05,2]
[342328597,1731729954294,-300.0,9.797e-05,2]
[342328598,1731729954315,-1056.08054702,9.798e-05,2]
[342328599,1731729954339,-1119.34185524,9.798e-05,2]
[342328600,1731729954361,-1065.78682959,9.798e-05,2]
[342328601,1731729954382,-2500.0,9.799e-05,2]
[342328602,1731729954402,-150.0,9.799e-05,2]
[342328603,1731729954424,-33759.14097263,9.8e-05,2]
[342328604,1731730014400,1937.32,8.219e-05,2]
[342328605,1731730029114,-300.0,8.999e-05,2]
[342328606,1731730029135,-39974.94047849,9e-05,2]
[342328607,1731730029155,-150.0,9.799e-05,2]
[342328608,1731730029177,-15986.37985429,9.8e-05,2]
[342328609,1731730047230,-4577.87107066,9.8e-05,2]
[342328634,1731730238312,-250.0,9.105e-05,2]
[342328635,1731730238321,-150.0,9.798e-05,2]
[342328636,1731730238330,-300.0,9.798e-05,2]
[342328637,1731730238339,-5594.4957023,9.799e-05,2]
[342328638,1731730238350,-7238.11229426,9.799e-05,2]
[342328639,1731730238361,-3125.94448,9.799e-05,2]
[342328640,1731730238372,-1183.09863459,9.799e-05,2]
[342328641,1731730238391,-3661.38430393,9.799e-05,2]
[342328642,1731730238444,-150.0,9.799e-05,2]
[342328643,1731730238460,-4722.96911794,9.799e-05,2]
[342328644,1731730238472,-10729.9312,9.799e-05,2]
[342328645,1731730238483,-3146.97427027,9.799e-05,2]
[342328646,1731730238523,-3511.01877038,9.799e-05,2]
[342328647,1731730238534,-3575.75337845,9.799e-05,2]
[342328648,1731730238545,-916.10504808,9.799e-05,2]
[342328649,1731730238555,-3473.97080918,9.799e-05,2]
[342328650,1731730238566,-6151.79558506,9.799e-05,2]
[342328651,1731730238577,-525.36216782,9.799e-05,2]
[342328652,1731730238871,-150.0,9.799e-05,2]
[342328658,1731730240092,-10121.76060891,9.799e-05,2]
[342328659,1731730240103,-553.45499997,9.799e-05,2]
[342328660,1731730240200,-428.122495,9.799e-05,2]
[342328661,1731730240211,-4158.49282427,9.799e-05,2]
[342328662,1731730240260,-3760.31629213,9.799e-05,2]
[342328663,1731730241463,-2239.17112581,9.799e-05,2]
[342328668,1731730243142,-612.5,9.799e-05,2]
[342328669,1731730243197,-1138.50178,9.799e-05,2]
[342328670,1731730243252,-11213.97245001,9.799e-05,2]
[342328671,1731730243488,-27929.89258499,9.799e-05,2]
[342328672,1731730243522,-5207.46023301,9.799e-05,2]
[342328673,1731730243533,-15275.75036988,9.799e-05,2]
[342328677,1731730246088,-4339.0,9.799e-05,2]
[342328678,1731730246410,-365.1634274,9.799e-05,2]
[342328679,1731730246457,-725.35509358,9.799e-05,2]
[342328680,1731730266269,-150.0,9.152e-05,2]
[342328692,1731730634904,150.0,7.047e-05,2]
[342328693,1731730697822,1913.92,8.219e-05,2]
[342328694,1731730764443,-2007.16,0.0001,8]
[342328695,1731730836829,-1258.0,0.0001,5]
[342328696,1731730945315,259.31,8.501e-05,2]
[342328697,1731731106672,200.0,8.41e-05,2]
[342328698,1731731226140,-272.68,8.514e-05,2]
[342328699,1731731226160,-250.0,8.522e-05,2]
[342328700,1731731226180,-500.0,8.569e-05,2]
[342328701,1731731226200,-531.551399,8.609e-05,2]
[342328702,1731731226221,-1000.0,8.652e-05,2]
[342328703,1731731226243,-2015.05936099,8.744e-05,2]
[342328704,1731731251128,-18835.31063901,8.744e-05,2]
[342328705,1731731251149,-153.18,8.767e-05,2]
[342328706,1731731251170,-1279.0,8.791e-05,2]
[342328707,1731731251191,-187.27,8.809e-05,2]
[342328708,1731731251213,-1649.37,8.848e-05,2]
[342328709,1731731251233,-166.39,8.848e-05,2]
[342328710,1731731251255,-433.27,8.905e-05,2]
[342328711,1731731251275,-250.0,8.941e-05,2]
[342328712,1731731251297,-184.77,9.027e-05,2]
[342328713,1731731251317,-150.0,9.051e-05,2]
[342328714,1731731251337,-100000.0,9.052e-05,2]
[342328715,1731731251357,-21870.32681416,9.052e-05,2]
[342328718,1731731320348,-11557.0,0.000105,5]
[342328721,1731731334004,10185.0,0.000105,5]
[342328722,1731731353122,-453.38,8.944e-05,2]
[342328723,1731731353145,-89343.75247357,8.944e-05,2]
[342328724,1731731354098,-121198.6972,8.944e-05,2]
[342328725,1731731355461,-42187.0204,8.944e-05,2]
[342328726,1731731364526,-29441.07257919,8.944e-05,2]
[342328727,1731731365085,-28776.73176,8.944e-05,2]
[342328728,1731731366112,-7157.879526,8.944e-05,2]
[342328729,1731731368077,-264003.2192,8.944e-05,2]
[342328730,1731731372365,-3397.362766,8.944e-05,2]
[342328741,1731731432280,-450.0,8.944e-05,2]
[342328743,1731731432341,-6543.410145,8.944e-05,2]
[342328744,1731731432395,-31912.1915895,8.944e-05,2]
[342328745,1731731432407,-2544.63511106,8.944e-05,2]
[342328746,1731731432454,-1344.0,8.944e-05,2]
[342328747,1731731432469,-15128.57941968,8.944e-05,2]
[342328748,1731731432479,-250.0,8.956e-05,2]
[342328749,1731731432488,-59270.6503113,9.052e-05,2]
[342328750,1731731432512,-36413.98782385,9.052e-05,2]
[342328751,1731731432523,-311.44815681,9.052e-05,2]
[342328752,1731731432573,-6691.20643405,9.052e-05,2]
[342328753,1731731432585,-469.43488814,9.052e-05,2]
[342328754,1731731432596,-1788.2510625,9.052e-05,2]
[342328755,1731731432628,1818.22,8.219e-05,2]
[342328756,1731731432686,-60925.80124289,9.052e-05,2]
[342328757,1731731432698,-20395.9,9.052e-05,2]
[342328762,1731731438334,-3347.85770196,9.052e-05,2]
[342328763,1731731438392,-15675.97020223,9.052e-05,2]
[342328764,1731731438782,-2257.06240025,9.052e-05,2]
[342328772,1731731440256,-2858.01939282,9.052e-05,2]
[342328774,1731731440312,-2263.82,9.052e-05,2]
[342328775,1731731440375,-3253.12967173,9.052e-05,2]
[342328776,1731731440538,-461.36741209,9.052e-05,2]
[342328777,1731731440594,-383.74735203,9.052e-05,2]
[342328787,1731731443409,-1950.8,9.052e-05,2]
[342328788,1731731443749,-1602.21761288,9.052e-05,2]
[342328789,1731731443761,-31472.54022158,9.052e-05,2]
[342328790,1731731443776,-1026.84924479,9.052e-05,2]
[342328791,1731731443787,-774.89963738,9.052e-05,2]
[342328793,1731731443808,-893.871399,9.052e-05,2]
[342328796,1731731446310,-1971.07646217,9.052e-05,2]
[342328797,1731731446369,-2801.07059239,9.052e-05,2]
[342328798,1731731446381,-1498.62749852,9.052e-05,2]
[342328799,1731731446393,-2584.6584311,9.052e-05,2]
[342328800,1731731446428,-883.72386365,9.052e-05,2]
[342328801,1731731446439,-14222.6739026,9.052e-05,2]
[342328802,1731731446542,-1186.59452409,9.052e-05,2]
[342328803,1731731446553,-13737.02976123,9.052e-05,2]
[342328804,1731731446653,-641.61544197,9.052e-05,2]
[342328805,1731731446664,-292.29160126,9.052e-05,2]
[342328806,1731731446675,-277.77979186,9.052e-05,2]
[342328811,1731732097330,1806.57,8.219e-05,2]
[342328812,1731732116034,166.39,8.467e-05,2]
[342328813,1731732147346,2558.0,8.482e-05,2]
[342328814,1731732147369,20451.77,8.482e-05,2]
[342328815,1731732148277,250.0,8.482e-05,2]
[342328816,1731732280374,1000.0,8.399e-05,2]
[342328817,1731732303389,1360.20244575,0.00023,120]
[342328818,1731732353139,-437.29,8.527e-05,2]
[342328819,1731732353159,-629.3584,8.844e-05,2]
[342328820,1731732353179,-582.70893481,8.848e-05,2]
[342328821,1731732359088,-540.76710701,8.848e-05,2]
[342328822,1731732441135,-300.0,8.847e-05,2]
[342328823,1731732441158,-13369.52395818,8.848e-05,2]
[342328824,1731732441177,-6555.57,8.848e-05,2]
[342328825,1731732441197,-200.0,8.854e-05,2]
[342328826,1731732441218,-251.96,8.89e-05,2]
[342328827,1731732441239,-150.0,8.932e-05,2]
[342328828,1731732441259,-811.59,8.951e-05,2]
[342328829,1731732441280,-178.87296506,8.951e-05,2]
[342328830,1731732441309,-55755.0713,8.952e-05,2]
[342328831,1731732441329,-362.32,8.96e-05,2]
[342328832,1731732441349,-1053.08109403,9e-05,2]
[342328833,1731732441370,-400.0,9e-05,3]
[342328834,1731732441390,-623.06,9.002e-05,2]
[342328835,1731732441411,-184.77,9.072e-05,2]
[342328836,1731732441432,-900.0,9.1e-05,3]
[342328837,1731732441453,-167.43,9.175e-05,2]
[342328838,1731732441473,-1400.0,9.2e-05,3]
[342328839,1731732441493,-1900.0,9.3e-05,3]
[342328840,1731732441514,-425.50715165,9.327e-05,2]
[342328841,1731732441540,-2400.0,9.4e-05,3]
[342328842,1731732441562,-1000.0,9.449e-05,2]
[342328843,1731732441583,-53750.32643636,9.489e-05,2]
[342328864,1731732631459,-300.0,9.488e-05,2]
[342328866,1731732631469,-392.9863151,9.489e-05,2]
[342328868,1731732631481,-1386.10575894,9.489e-05,2]
[342328869,1731732631498,-450.44936041,9.489e-05,2]
[342328870,1731732631575,-3148.25040652,9.489e-05,2]
[342328871,1731732631596,-21502.99307499,9.489e-05,2]
[342328872,1731732631691,-7416.86554768,9.489e-05,2]
[342328873,1731732631701,-2820.9743,9.489e-05,2]
[342328874,1731732631710,-400.0,9.5e-05,3]
[342328875,1731732631719,-165.14544832,9.563e-05,2]
[342328876,1731732631730,-502.79767634,9.563e-05,2]
[342328877,1731732631740,-504.76805763,9.563e-05,2]
[342328878,1731732631750,-247.26745549,9.563e-05,2]
[342328879,1731732631761,-252.73254451,9.563e-05,2]
[342328880,1731732631770,-160.51830871,9.563e-05,2]
[342328881,1731732631781,-503.6949624,9.563e-05,2]
[342328882,1731732631790,-500.40979318,9.589e-05,2]
[342328883,1731732631799,-500.28032636,9.589e-05,2]
[342328884,1731732631810,-405.42492308,9.589e-05,2]
[342328885,1731732631823,-94.6519537,9.589e-05,2]
[342328886,1731732631832,-500.30323283,9.589e-05,2]
[342328887,1731732631843,-512.58713545,9.589e-05,2]
[342328888,1731732631852,-508.46563597,9.589e-05,2]
[342328890,1731732631861,-500.82532865,9.589e-05,2]
[342328891,1731732631872,-500.88396802,9.589e-05,2]
[342328893,1731732631881,-495.72919033,9.589e-05,2]
[342328896,1731732631893,-500.27523355,9.589e-05,2]
[342328897,1731732631904,-500.36584792,9.589e-05,2]
[342328899,1731732631913,-500.0,9.589e-05,2]
[342328901,1731732631923,-501.32992606,9.589e-05,2]
[342328903,1731732631939,-500.04931366,9.589e-05,2]
[342328905,1731732631962,-501.30989803,9.589e-05,2]
[342328907,1731732631973,-374.26869882,9.589e-05,2]
[342328909,1731732631982,-501.07227583,9.589e-05,2]
[342328911,1731732631992,-500.0,9.589e-05,2]
[342328913,1731732632001,-500.0,9.589e-05,2]
[342328915,1731732632010,-179.35242869,9.589e-05,2]
[342328917,1731732632021,-100.91858695,9.589e-05,2]
[342328919,1731732632033,-400.12847219,9.589e-05,2]
[342328921,1731732632044,-315.11910226,9.589e-05,2]
[342328923,1731732632054,-429.87809088,9.589e-05,2]
[342328926,1731732632066,-70.42277016,9.589e-05,2]
[342328928,1731732632076,-500.77251294,9.589e-05,2]
[342328930,1731732632085,-500.03217476,9.589e-05,2]
[342328932,1731732632095,-138.02493145,9.589e-05,2]
[342328936,1731732632122,-174.36352653,9.589e-05,2]
[342328938,1731732632135,-500.91542895,9.589e-05,2]
[342328940,1731732632144,-502.18445933,9.589e-05,2]
[342328942,1731732632153,-500.92336337,9.589e-05,2]
[342328944,1731732632162,-500.42490676,9.589e-05,2]
[342328945,1731732632172,-500.63690815,9.589e-05,2]
[342328948,1731732632182,-500.61726325,9.589e-05,2]
[342328950,1731732632195,-500.19332983,9.589e-05,2]
[342328952,1731732632205,-539.10176076,9.589e-05,2]
[342328954,1731732632214,-500.67345984,9.589e-05,2]
[342328956,1731732632224,-500.01573862,9.589e-05,2]
[342328958,1731732632233,-634.53839089,9.589e-05,2]
[342328960,1731732632242,-196.46376729,9.589e-05,2]
[342328962,1731732632251,-500.3228708,9.589e-05,2]
[342328964,1731732632260,-500.07802804,9.589e-05,2]
[342328965,1731732632269,-500.01797635,9.589e-05,2]
[342328966,1731732632279,-500.40612833,9.589e-05,2]
[342328967,1731732632288,-204.9447106,9.589e-05,2]
[342328968,1731732632298,-500.25560351,9.589e-05,2]
[342328969,1731732632307,-500.03096796,9.589e-05,2]
[342328970,1731732632317,-500.04473912,9.589e-05,2]
[342328971,1731732632326,-500.01636918,9.589e-05,2]
[342328972,1731732632335,-500.75180694,9.589e-05,2]
[342328973,1731732632344,-500.0,9.589e-05,2]
[342328974,1731732632353,-500.0,9.589e-05,2]
[342328975,1731732632362,-500.0,9.589e-05,2]
[342328976,1731732632371,-500.0,9.589e-05,2]
[342328977,1731732632380,-500.0,9.589e-05,2]
[342328978,1731732632390,-500.0,9.589e-05,2]
[342328979,1731732632399,-500.0,9.589e-05,2]
[342328980,1731732632408,-500.0,9.589e-05,2]
[342328981,1731732632417,-500.0,9.589e-05,2]
[342328982,1731732632427,-602.75373945,9.589e-05,2]
[342328983,1731732632439,-500.0,9.589e-05,2]
[342328984,1731732632450,-500.0,9.589e-05,2]
[342328985,1731732632460,-500.0,9.589e-05,2]
[342328986,1731732632469,-500.0,9.589e-05,2]
[342328987,1731732632478,-500.0,9.589e-05,2]
[342328988,1731732632488,-500.0,9.589e-05,2]
[342328989,1731732632497,-500.0,9.589e-05,2]
[342328990,1731732632507,-500.0,9.589e-05,2]
[342328991,1731732632517,-500.0,9.589e-05,2]
[342328992,1731732632527,-455.58503162,9.589e-05,2]
[342328993,1731732632536,-500.0,9.589e-05,2]
[342328994,1731732632547,-500.0,9.589e-05,2]
[342328995,1731732632558,-501.39594173,9.589e-05,2]